Cogmind - Beta 14 @@@ ROGUE MODE // 2024.11.13 @ 21:47:58 Player: WazdakkaGutsmek Result: Self-destructed Performance ------------- Evolutions (2) 1000 Regions Visited (7) 1400 Robots Destroyed (46) 230 Value Destroyed (2342) 2342 Prototype IDs (35) 700 Alien Tech Used (0) 0 Bonus (1565) 1565 TOTAL SCORE: 7237 Bonus ------- High Alert Combat Kills 491 Follower Combat Kills 87 Entered Garrisons 200 Used RIF Installer 500 Aligned with FarCom 300 Friendly Fire -13 Cogmind --------- Core Integrity 201/550 Matter 290/300 Energy 100/100 System Corruption 12% Temperature Cool (9) Movement Core (400) Ox7 Location -8/Materials Parts ------- > --- POWER (1) -------- (None) > --- PROPULSION (2) --- (None) > --- UTILITY (6) ------ Large Storage Unit Hacking Suite > --- WEAPON (2) ------- Power Maul (fused) > --- INVENTORY (15) --- Advanced Cooling System Superbattery (1500) Experimental Sensor Array Improved Kinecellerator Improved Transmission Jammer Relay Coupler [Sentry] (18) Relay Coupler [Sentry] (24) Long-range Tractor Beam Trap Reconfigurator Tesla Rifle Gauss Rifle AWS/Gauss Mass Driver Heavy Shock Bomb Launcher Peak State ------------ > --- POWER ------------ Light Angular Momentum Engine > --- PROPULSION ------- Light Treads Light Treads > --- UTILITY ---------- Improved Heat Sink Large Storage Unit Advanced Melee Analysis Suite Improved Kinecellerator Improved Light Armor Plating Hacking Suite > --- WEAPON ----------- AWS/Gauss > --- INVENTORY -------- Advanced Cooling System Disposable Heat Sink Superbattery Experimental Sensor Array Improved Transmission Jammer Relay Coupler [Sentry] Relay Coupler [Sentry] Long-range Tractor Beam Trap Reconfigurator Tesla Rifle Gauss Rifle Mass Driver Heavy Shock Bomb Launcher Improved Remote Datajack [Rating: 52] Favorites ----------- Power Light Angular Momentum Engine Engine Light Angular Momentum Engine Power Core Micro Nuclear Core Propulsion Light Treads Treads Light Treads Leg Aluminum Leg Utility Advanced Melee Analysis Suite Device Improved Heat Sink Storage Large Storage Unit Processor Advanced Melee Analysis Suite Hackware Hacking Suite Protection Light Armor Plating Weapon Power Maul Energy Gun Medium Laser Ballistic Gun AWS/Gauss Special Weapon Improved Remote Datajack Impact Weapon Power Maul Special Melee Weapon Datajack Build | -11 -10 -10 -10 -9 -8 -8 -8 ------- Run | Yrd Mat Min Exi Min Mat Gar Mat Slots Evolved 4 | . . . . . 4 . . Power . | . . . . . . . . Propulsion . | . . . . . . . . Utility 4 | . . . . . 4 . . Weapon . | . . . . . . . . Parts Attached 39 | . 1 2 5 . 3 28 . Power 5 | . . 1 . . . 4 . Engine 2 | . . 1 . . . 1 . Core 3 | . . . . . . 3 . Reactor . | . . . . . . . . Propulsion 6 | . . . 2 . . 4 . Treads 6 | . . . 2 . . 4 . Leg . | . . . . . . . . Wheel . | . . . . . . . . Hover . | . . . . . . . . Flight . | . . . . . . . . Utility 12 | . . 1 1 . 3 7 . Device 3 | . . 1 . . 1 1 . Storage 1 | . . . 1 . . . . Processor 2 | . . . . . . 2 . Hackware 1 | . . . . . 1 . . Protection 5 | . . . . . 1 4 . Artifact . | . . . . . . . . Weapon 16 | . 1 . 2 . . 13 . Energy Gun 1 | . . . . . . 1 . Energy Cannon . | . . . . . . . . Ballistic Gun 7 | . 1 . 1 . . 5 . Ballistic Cannon . | . . . . . . . . Launcher . | . . . . . . . . Special Weapon 1 | . . . . . . 1 . Impact Weapon 6 | . . . . . . 6 . Slashing Weapon . | . . . . . . . . Piercing Weapon . | . . . . . . . . Special Melee Weapon 1 | . . . 1 . . . . Unidentified Prototypes 1 | . . 1 . . . . . Corrupted Parts 2 | . . . . . . 2 . System Corruption 12 | . . . . . . 12 . Parts Lost 11 | . . 1 . . . 2 8 Power 4 | . . 1 . . . 2 1 Propulsion 2 | . . . . . . . 2 Utility 4 | . . . . . . . 4 Weapon 1 | . . . . . . . 1 Highest Loss Streak 8 | . . 1 . . . 1 8 To Critical Strikes . | . . . . . . . . Average Slot Usage (%) 92 | . 85 85 78 71 55 95 92 Engine 5 | . 14 14 14 14 9 4 . Core 3 | . . . . . . 4 9 Treads 17 | . . . 12 28 18 18 15 Leg 1 | . 28 28 15 . . . . Device 13 | . . . . . . 16 15 Storage 9 | . 14 14 14 14 9 9 9 Processor 8 | . . . . . . 10 9 Hackware 7 | . . . . . 9 9 9 Protection 7 | . . . . . 1 8 7 Ballistic Gun 2 | . 14 14 8 14 9 . . Special Weapon 4 | . . . . . . 5 9 Impact Weapon 7 | . . . . . . 8 9 Peak Build Rating 52 | . 7 16 25 24 33 52 44 Average Rating 38 | . 6 7 15 24 27 42 41 On Entrance 19 | 6 6 7 8 24 24 33 44 Naked Turns . | . . . . . . . . Heaviest Build 48 | 12 12 12 33 33 42 48 42 Greatest Support 40 | 20 20 20 40 40 40 40 40 Greatest Overweight (x) 12 | . . . . . 1 1 12 Average Overweight (x) . | . . . . . . . 1 Largest Inventory Capacity 15 | . 8 8 15 15 15 15 15 Average Capacity 14 | . 8 8 8 15 15 15 15 Most Carried 15 | . 8 8 8 8 8 15 15 Average Carried 13 | . 7 7 7 7 7 14 15 Final Capacity 15 | 8 8 8 15 15 15 15 15 Final Carried 15 | 6 8 8 7 8 7 15 15 Class Distribution -------------------- 78% | Scavenger-Mutant 21% | Mutant Dominant Class ---------------- Mutant | -10/Materials Mutant | -10/Mines Mutant | -10/Exiles Mutant | -9/Mines Mutant | -8/Materials Scavenger-Mutant | -8/Garrison Scavenger-Mutant | -8/Materials Resources | -11 -10 -10 -10 -9 -8 -8 -8 ----------- Run | Yrd Mat Min Exi Min Mat Gar Mat Matter Collected 1061 | 200 28 95 . 50 . 688 . Remotely . | . . . . . . . . Salvage Created 2218 | . 56 347 . . . 1776 39 Parts 117 | . 7 20 . . . 90 . Haulers Intercepted . | . . . . . . . . Recyclers Shooed . | . . . . . . . . Parts Field Recycled . | . . . . . . . . Retrieved Matter . | . . . . . . . . Parts Self-Destructed . | . . . . . . . . Prevented . | . . . . . . . . Kills | -11 -10 -10 -10 -9 -8 -8 -8 ------- Run | Yrd Mat Min Exi Min Mat Gar Mat Combat Hostiles Destroyed 43 | . 1 5 . . . 36 1 Melee 1 | . . . . . . 1 . Guns 35 | . 1 5 . . . 29 . Classes Destroyed 10 | . 2 2 . . . 6 . Worker 1 | . . 1 . . . . . Recycler 1 | . . 1 . . . . . Operator 1 | . 1 . . . . . . Swarmer 6 | . . . . . . 6 . Saboteur 2 | . . . . . . 2 . Grunt 17 | . 1 5 . . . 10 1 Brawler 1 | . . . . . . 1 . Sentry 12 | . . . . . . 12 . Hunter 4 | . . . . . . 4 . Programmer 1 | . . . . . . 1 . Best Kill Streak 7 | . 1 3 . . . 7 1 Combat Bots Only 7 | . 1 2 . . . 7 1 Max Kills in Single Turn 1 | . 1 1 . . . 1 1 Gunslinging . | . . . . . . . . Exploded . | . . . . . . . . Melee 1 | . . . . . . 1 . Uniques/NPCs Destroyed . | . . . . . . . . Combat | -11 -10 -10 -10 -9 -8 -8 -8 -------- Run | Yrd Mat Min Exi Min Mat Gar Mat Hostile Shots Fired 226 | . . 23 . . . 125 78 Missed 67 | . . 7 . . . 35 25 Damage Taken 2203 | . . 244 . . . 1255 704 Core 424 | . . 75 . . . 210 139 Absorbed by Shields . | . . . . . . . . Core Remaining (%) 85 | 100 . . . 70 . . . Volleys Fired 43 | . 6 26 . . . 11 . Largest 2 | . 2 2 . . . 1 . Hottest 70 | . 70 70 . . . 7 . Shots Fired 163 | . 12 52 . . . 99 . Gun 152 | . 12 52 . . . 88 . Cannon . | . . . . . . . . Launcher . | . . . . . . . . Special 11 | . . . . . . 11 . Kinetic 120 | . 6 26 . . . 88 . Thermal 32 | . 6 26 . . . . . Explosive . | . . . . . . . . Electromagnetic . | . . . . . . . . Robot Hit Streak 22 | . 3 7 . . . 22 . Robot Miss Streak 3 | . 2 3 . . . 2 . Penetration Max 1 | . . . . . . 1 . Secondary Targets 1 | . . 1 . . . . . Max Gunslinging Chain 1 | . . 1 . . . . . Autonomous 88 | . . . . . . 88 . Shots Hit Robots 162 | . 7 32 4 . . 118 1 Core Hits 60 | . 3 16 . . . 41 . Critical Kills 2 | . . . . . . 2 . Critical Parts Destroyed 6 | . . . . . . 5 1 Critical Strikes 10 | . . 2 . . . 7 1 Burn 2 | . . 2 . . . . . Destroy 1 | . . . . . . 1 . Smash 7 | . . . . . . 6 1 Melee Attacks 249 | . . . 4 . . 244 1 Impact 245 | . . . . . . 244 1 Slashing . | . . . . . . . . Piercing . | . . . . . . . . Sneak Attacks 4 | . . . 4 . . . . Combat Hostiles . | . . . . . . . . Follow-up Attacks . | . . . . . . . . Damage Inflicted 4806 | . 90 410 . . . 4268 38 Guns 3007 | . 90 410 . . . 2507 . Cannons . | . . . . . . . . Explosions . | . . . . . . . . Melee 1799 | . . . . . . 1761 38 Ramming . | . . . . . . . . Kinetic 2742 | . 39 196 . . . 2507 . Thermal 265 | . 51 214 . . . . . Explosive . | . . . . . . . . Electromagnetic . | . . . . . . . . Impact 1799 | . . . . . . 1761 38 Slashing . | . . . . . . . . Piercing . | . . . . . . . . Highest Corruption 12 | . . . . . . 12 12 Average Corruption 11 | . . . . . . 11 12 Corruption Purged . | . . . . . . . . Corruption Blocked . | . . . . . . . . Effects 191 | . . . . . . 185 6 Message Errors 47 | . . . . . . 45 2 Matter Fused 48 | . . . . . . 46 2 Heat Flow Errors 26 | . . . . . . 26 . Energy Discharges 24 | . . . . . . 23 1 Parts Fused 7 | . . . . . . 7 . Data Loss (minor) 26 | . . . . . . 26 . Data Loss (major) 10 | . . . . . . 10 . Alerts 2 | . . . . . . 2 . Misdirections 1 | . . . . . . . 1 Overload Shots . | . . . . . . . . Overflow Damage 636 | . . . . . . 598 38 Projectiles 3 | . . . . . . 3 . Explosions . | . . . . . . . . Melee 633 | . . . . . . 595 38 Knockbacks 5 | . . . . . . 5 . Impact 4 | . . . . . . 4 . Kinetic . | . . . . . . . . Secondary 1 | . . . . . . 1 . Self-Inflicted Damage . | . . . . . . . . Shots . | . . . . . . . . Rammed . | . . . . . . . . Targets Rammed 1 | . . 1 . . . . . Kicked 1 | . . 1 . . . . . Crushed . | . . . . . . . . Highest Temperature 264 | . 45 114 . . . 264 6 Average Temperature 71 | . 20 41 . . . 100 4 Received Heat Transfer 903 | . . 135 . . . 462 306 Siege Activations . | . . . . . . . . Robots Corrupted 8 | . . . . . . 7 1 Combat Hostiles 8 | . . . . . . 7 1 Parts Fried 10 | . . . . . . 9 1 Impact Corruptions 25 | . . . . . . 24 1 Robots Melted . | . . . . . . . . Combat Hostiles . | . . . . . . . . Parts Melted 2 | . . 2 . . . . . Heat Transferred 925 | . 148 777 . . . . . Parts Sabotaged 1 | . . . . . . 1 . Parts Stolen . | . . . . . . . . Parts Stripped . | . . . . . . . . Power Chain Reactions . | . . . . . . . . Alert | -11 -10 -10 -10 -9 -8 -8 -8 ------- Run | Yrd Mat Min Exi Min Mat Gar Mat Peak Influence 5753 | . 42 146 . . . 5753 2809 Initial 2804 | . . 16 . . . . 2804 Average 2529 | . 18 114 . . . 2781 2796 Maximum Alert Level 5 | . . . . . . 5 5 Low Security (%) 14 | . 100 100 . 100 100 5 . Level 1 1 | . . . . . . 1 . Level 2 6 | . . . . . . 7 . Level 3 9 | . . . . . . 10 . Level 4 6 | . . . . . . 7 . Level 5 61 | . . . . . . 67 100 High Security . | . . . . . . . . Max Security . | . . . . . . . . Squads Dispatched 2 | . 1 . . . . . 1 Investigation . | . . . . . . . . Extermination . | . . . . . . . . Reinforcement 2 | . 1 . . . . . 1 Assault . | . . . . . . . . Garrison . | . . . . . . . . Intercept . | . . . . . . . . Searches Triggered . | . . . . . . . . Construction Impeded . | . . . . . . . . Haulers Reinforced . | . . . . . . . . Active Scanning Responses . | . . . . . . . . Cargo Convoy Interrupts . | . . . . . . . . Stealth | -11 -10 -10 -10 -9 -8 -8 -8 --------- Run | Yrd Mat Min Exi Min Mat Gar Mat Distress Signals 1 | . . . . . . . 1 Communications Jammed . | . . . . . . . . Distress Signals . | . . . . . . . . Times Spotted 64 | . 2 6 . . . 43 13 Peak Tracking Total 9 | . 1 2 . . . 9 7 Tactical Retreats 4 | . . . . . . 4 . Traps | -11 -10 -10 -10 -9 -8 -8 -8 ------- Run | Yrd Mat Min Exi Min Mat Gar Mat Traps Triggered 16 | . . . . . . 16 . Indirectly . | . . . . . . . . Trap Hack Attempts . | . . . . . . . . Triggered . | . . . . . . . . Disarmed . | . . . . . . . . Reprogrammed . | . . . . . . . . Reused . | . . . . . . . . Traps Extracted . | . . . . . . . . Installed . | . . . . . . . . Triggered . | . . . . . . . . Machines | -11 -10 -10 -10 -9 -8 -8 -8 ---------- Run | Yrd Mat Min Exi Min Mat Gar Mat Machines Disabled 7 | . . . . . . 7 . Max in Single Turn 1 | . . . . . . 1 . Garrison Relay 3 | . . . . . . 3 . Machines Repaired . | . . . . . . . . Machines Dismantled . | . . . . . . . . Machines Sabotaged . | . . . . . . . . Overloaded Fab Kills . | . . . . . . . . Hacking | -11 -10 -10 -10 -9 -8 -8 -8 --------- Run | Yrd Mat Min Exi Min Mat Gar Mat Machines Accessed 7 | . 2 . 1 . 1 3 . Terminals 5 | . 2 . . . . 3 . Fabricators . | . . . . . . . . Repair Stations . | . . . . . . . . Recycling Units . | . . . . . . . . Scanalyzers . | . . . . . . . . Garrison Access 1 | . . . . . 1 . . Total Hacks 15 | . 4 . 1 . 2 8 . Successful 5 | . 1 . 1 . 1 2 . Failed 10 | . 3 . . . 1 6 . Catastrophic 3 | . 1 . . . . 2 . Database Lockouts . | . . . . . . . . Manual 8 | . 4 . 1 . . 3 . Terminals 12 | . 4 . . . . 8 . Fabricators . | . . . . . . . . Repair Stations . | . . . . . . . . Recycling Units . | . . . . . . . . Scanalyzers . | . . . . . . . . Garrison Access 2 | . . . . . 2 . . Terminal Hacks 4 | . 1 . 1 . . 2 . Robot Schematic 1 | . 1 . . . . . . Open Door 1 | . . . . . . 1 . Patrol Navigation 1 | . . . . . . 1 . Derelict Proto ID Bank 1 | . . . 1 . . . . Fabricator Hacks . | . . . . . . . . Repair Station Hacks . | . . . . . . . . Recycling Unit Hacks . | . . . . . . . . Scanalyzer . | . . . . . . . . Garrison Access Hacks 1 | . . . . . 1 . . Unlock Access 1 | . . . . . 1 . . Unauthorized Hacks . | . . . . . . . . Terminals . | . . . . . . . . Fabricators . | . . . . . . . . Repair Stations . | . . . . . . . . Recycling Units . | . . . . . . . . Scanalyzers . | . . . . . . . . Garrison Access . | . . . . . . . . Data Cores Recovered . | . . . . . . . . Used . | . . . . . . . . Hacking Detections 6 | . 2 . . . 1 3 . Full Trace Events 1 | . . . . . . 1 . Feedback Events . | . . . . . . . . Feedback Blocked . | . . . . . . . . Robot Schematics Acquired 1 | . 1 . . . . . . Robots Built . | . . . . . . . . Authchips . | . . . . . . . . Time . | . . . . . . . . Total Robot Build Rating . | . . . . . . . . Part Schematics Acquired . | . . . . . . . . Parts Built . | . . . . . . . . Authchips . | . . . . . . . . Time . | . . . . . . . . Total Part Build Rating . | . . . . . . . . Parts Repaired . | . . . . . . . . Time . | . . . . . . . . Parts Recycled . | . . . . . . . . Recycled Matter . | . . . . . . . . Retrieved Matter . | . . . . . . . . Retrieved Components . | . . . . . . . . Parts Scanalyzed . | . . . . . . . . Part Schematics Acquired . | . . . . . . . . Parts Damaged . | . . . . . . . . Bothacking | -11 -10 -10 -10 -9 -8 -8 -8 ------------ Run | Yrd Mat Min Exi Min Mat Gar Mat Used RIF Installer 1 | . . . . . . 1 . Robots Hacked 4 | . . . 3 . . 1 . Non-combat 2 | . . . 2 . . . . Combat 2 | . . . 1 . . 1 . Robot Hacks Applied 4 | . . . 3 . . 1 . parse_system 4 | . . . 3 . . 1 . Relay Couplers Released 12 | . . . . . . 12 . Machine Destruction 12 | . . . . . . 12 . Fabnet Peak Effective % . | . . . . . . . . Robots Rewired 6 | . . . . . . 6 . Allies Hacked . | . . . . . . . . Hacks Repelled . | . . . . . . . . Allies | -11 -10 -10 -10 -9 -8 -8 -8 -------- Run | Yrd Mat Min Exi Min Mat Gar Mat Total Allies 6 | . . . . . . 6 . Largest Group 5 | . . . . . . 5 1 Highest-Rated Group 77 | . . . . . . 77 5 Highest-Rated Ally 31 | . . . . . . 31 5 Total Orders . | . . . . . . . . Ally Attacks 49 | . . . . . . 44 5 Total Damage 388 | . . . . . . 363 25 Kills 3 | . . . . . . 3 . Allies Corrupted . | . . . . . . . . Allies Melted . | . . . . . . . . Intel | -11 -10 -10 -10 -9 -8 -8 -8 ------- Run | Yrd Mat Min Exi Min Mat Gar Mat Robot Analysis Total . | . . . . . . . . Derelict Logs Recovered 1 | . . . . 1 . . . Drone Launches . | . . . . . . . . Drone Recoveries . | . . . . . . . . Exploration | -11 -10 -10 -10 -9 -8 -8 -8 ------------- Run | Yrd Mat Min Exi Min Mat Gar Mat Turns Passed 9827 | . 113 288 463 395 66 8382 120 Spaces Moved 4192 | 1 76 156 328 246 37 3303 45 Core 2 | . . . . . . . 2 Treads 3755 | . . . 126 246 37 3303 43 Legs 435 | 1 76 156 202 . . . . Wheels . | . . . . . . . . Hover . | . . . . . . . . Flight . | . . . . . . . . Fastest Speed 120 | 120 120 120 120 160 160 160 160 Average Speed 208 | 120 120 120 135 160 164 226 250 Slowest Speed 650 | 120 120 120 160 160 240 240 650 Overloaded Moves . | . . . . . . . . Propulsion Burnouts . | . . . . . . . . Robots Hopped . | . . . . . . . . Cave-ins Triggered . | . . . . . . . . Exploration Rate (%) 38 | 2 22 49 63 58 4 97 9 Regions Visited 7 Branch Regions 3 Pre-discovered Areas . | . . . . . . . . Known Exits Taken 1 | . . . . . 1 . . Unknown Exits Taken 5 | 1 1 1 1 1 . . . Scrap Searched 1 | . . . . 1 . . . Spaces Dug 171 | . . . . . . 171 . Terrain Destroyed 183 | . . . . . . 183 . Melee 171 | . . . . . . 171 . Projectile 12 | . . . . . . 12 . AOE . | . . . . . . . . Terrain Rammed . | . . . . . . . . Walls Destroyed . | . . . . . . . . Machines Disabled . | . . . . . . . . Actions | -11 -10 -10 -10 -9 -8 -8 -8 --------- Run | Yrd Mat Min Exi Min Mat Gar Mat Total 4711 | . 85 205 347 248 41 3735 50 Wait 105 | . 1 15 . 2 . 83 4 Move 4186 | . 75 155 327 245 37 3302 45 Hop . | . . . . . . . . Pick Up 27 | . 2 3 3 1 1 17 . Fast Attach 13 | . . 1 2 . 1 9 . Attach 15 | . . 1 1 . 2 11 . Detach 7 | . . . 1 . . 6 . Swap 11 | . 1 . 2 . . 8 . Drop 30 | . . 3 7 . . 20 . Fire 43 | . 6 26 . . . 11 . Melee 249 | . . . 4 . . 244 1 Ram . | . . . . . . . . Kick 1 | . . 1 . . . . . Crush . | . . . . . . . . Escape Stasis 24 | . . . . . . 24 . Rewire . | . . . . . . . . Trap . | . . . . . . . . Miscellaneous . | . . . . . . . . Route ------- -11/Scrapyard -10/Materials -10/Mines -10/Exiles -9/Mines -8/Materials -8/Garrison (discovered 3 exits: [*Mat x3]) -8/Materials (discovered 1 exit: [*Sto]) History --------- Turn | Location | Event 1 | -11/Scrapyard | Discovered new exit (range 0) 1 | -11/Scrapyard | Entered Materials 103 | -10/Materials | Discovered new exit (range 7) 114 | -10/Materials | Entered Mines 134 | -10/Mines | Met a Derelict bent on vengeance 204 | -10/Mines | Found a damaged Exp. Sensor Array with a note attached 207 | -10/Mines | Found Prototype Device 207 | -10/Mines | Identified Exp. Sensor Array 307 | -10/Mines | Build established: Mutant 396 | -10/Mines | Deemed a non-threat by the Exiles lab entrance 397 | -10/Mines | Discovered new exit (range 5) 402 | -10/Mines | Entered Exiles 435 | -10/Exiles | Met 8R-AWN 453 | -10/Exiles | Met EX-HEX 557 | -10/Exiles | Met EX-BIN 606 | -10/Exiles | Aligned with FarCom system 607 | -10/Exiles | Given EX-Vault access code 634 | -10/Exiles | Opened EX-Vault 645 | -10/Exiles | Found AWS/Gauss 653 | -10/Exiles | Found Superbattery 677 | -10/Exiles | Found Trap Reconfigurator 712 | -10/Exiles | Warned to stay clear of 0b10 Research branches 755 | -10/Exiles | Met EX-DEC 846 | -10/Exiles | Discovered new exit (range 12) 865 | -10/Exiles | Stole three prototypes: AWS/Gauss, Superbattery, Trap Reconfigurator 865 | -10/Exiles | Entered Mines 1195 | -9/Mines | Learned Materials interactive machine intel 1244 | -9/Mines | Discovered new exit (range 8) 1260 | -9/Mines | Entered Materials 1260 | -8/Materials | Evolved 4 slots: Utility x4 1261 | -8/Materials | Loaded intel: 18 interactive machine locations 1326 | -8/Materials | Identified exit to Garrison 1326 | -8/Materials | Entered Garrison 1732 | -8/Garrison | Triggered checkpoint 1773 | -8/Garrison | Garrison Relay disabled 1787 | -8/Garrison | Garrison Relay disabled 1826 | -8/Garrison | Triggered checkpoint 1842 | -8/Garrison | Destroyed 7 combat bots 2038 | -8/Garrison | Discovered new exit (range 9) 2108 | -8/Garrison | Triggered checkpoint 2432 | -8/Garrison | Build established: Scavenger-Mutant 2564 | -8/Garrison | Discovered new exit (range 13) 2796 | -8/Garrison | Triggered checkpoint 2870 | -8/Garrison | Triggered checkpoint 2991 | -8/Garrison | Discovered new exit (range 10) 3312 | -8/Garrison | Triggered checkpoint 3478 | -8/Garrison | Triggered checkpoint 4401 | -8/Garrison | Garrison Relay disabled 4446 | -8/Garrison | System corruption reached 10% 5277 | -8/Garrison | Lost 4 allies 9616 | -8/Garrison | Installed Relay Interface Framework 9708 | -8/Garrison | Entered Materials 9708 | -8/Materials | Accompanied by 1 ally 9780 | -8/Materials | Discovered new exit (range 13) 9823 | -8/Materials | Core integrity fell below 50% 9828 | -8/Materials | Self-destructed Last Messages --------------- 09802_ Lgt. Armor Plating destroyed. 09803_ Critical hit (Burn: +37). 09808_ Lgt. Treads destroyed. 09810_ U-05 Engineer destroyed. 09811_ G-47 Trooper suffers critical hit (Smash). 09811_ Destroyed Imp. Heat Sink. 09811_ G-47 Trooper system corrupted by crushing effect. 09812_ G-47 Trooper system terminally corrupted. 09812_ Lgt. Nuclear Core fried. 09812_ K-01 Serf collects debris. 09814_ Lgt. Treads destroyed. 09815_ System corrupted: Matter fused (-9). 09816_ K-01 Serf suffers critical hit (Burn). 09816_ K-01 Serf destroyed. 09821_ Mic. Nuclear Core destroyed. 09823_ Adv. Melee Analysis Suite destroyed. 09824_ Imp. Remote Datajack destroyed. 09825_ Imp. Kinecellerator destroyed. Map ----- +----------------------------------------------------+ | ?????????????? ??????? ?????????????????? | | ????????????####+######## ????????????????? | | ????????????# ] ????????????????? | | ????????????# ????????????????? | | ????????????# ????????????????? | | ????????????##### ????????????????? | | ????????????????# ############?????????????????? | | ????????????????# #????????????????????????????? | | ????????????????# #????????????????????????????? | | ????????????????# #????????????????????????????? | | ????????????????# #????????????????????????????? | | ????????????????# #######??????????????????????? | | ????????????##### ##!!!!##?????????????????????? | | ????????????#[[ #! !#????????????? ??????? | | ????????????#[[ # #????????? ??????? | | ????????????#== # ####### ?????? | | ????????????#== a w ?????? | | ????????????#// ?????? | | ????????????#// usss######### #???????????? | | ????????????######+#####= #?????????????????????? | | ???????????????? ??#!* #?????????????????????? | | ??????????????"S """ ##%! #?????????????????????? | | ?????????????#""" """ ##=! #?????????????????????? | | ?????????????# "" """ ##g%%#?????????????????????? | | ?????????????# ##Y #?????????????????????? | | ?????????????# """ ## @ #?????????????????????? | | ?????????????# """ # #????????????????????? | | ?????????????# ????# g#????????????????????? | | ?????????????# ????#!